bitfinex/quotes_BTCUSD_20251009
["timestamp","ask_amount","ask_price","bid_price","bid_amount"]
[1760027538519,0.50411611,121220.0,121210.0,0.28902288]
[1760027538710,0.50411611,121220.0,121210.0,0.23085288]
[1760027538923,0.58411291,121220.0,121210.0,0.23085288]
[1760027539770,0.10236684,121220.0,121210.0,0.28902288]
[1760027539972,0.33912684,121220.0,121210.0,0.28902288]
[1760027540392,0.01656684,121220.0,121210.0,0.28902288]
[1760027540597,0.32371153,121220.0,121210.0,0.28902288]
[1760027540992,0.08695153,121220.0,121210.0,0.28902288]
[1760027541226,0.32371153,121220.0,121210.0,0.28902288]
[1760027541840,0.30080955,121220.0,121210.0,0.28902288]
[1760027542059,0.55291342,121220.0,121210.0,0.06791279]
[1760027542268,0.55291342,121220.0,121210.0,0.16746567]
[1760027542444,0.50404467,121220.0,121210.0,0.16746567]
[1760027542678,0.50404467,121220.0,121210.0,0.20484567]
[1760027543089,0.41947507,121220.0,121210.0,0.20484567]
[1760027543506,0.41947507,121220.0,121210.0,0.23507567]
[1760027543723,0.41947507,121220.0,121210.0,0.00246279]
[1760027543724,1.37658874,121220.0,121210.0,0.00246279]
[1760027543935,1.45658554,121220.0,121210.0,0.00246279]
[1760027545065,1.21986554,121220.0,121210.0,0.00246279]
[1760027545280,1.45658554,121220.0,121210.0,0.00246279]
[1760027545709,1.18579713,121220.0,121210.0,0.00246279]
[1760027546338,0.43850593,121220.0,121210.0,0.16746567]
[1760027546551,0.94937314,121220.0,121210.0,0.29254567]
[1760027546759,1.18609314,121220.0,121210.0,0.03984279]
[1760027546979,1.18609314,121220.0,121210.0,0.23507567]
[1760027547187,1.17070927,121220.0,121210.0,0.23507567]
[1760027547404,0.83070927,121220.0,121210.0,0.23507567]
[1760027547789,0.83070927,121220.0,121210.0,0.07007279]
[1760027548194,0.83070927,121220.0,121210.0,0.23507567]
[1760027548566,0.83070927,121220.0,121210.0,0.07007279]
[1760027548776,0.83070927,121220.0,121210.0,0.23507567]
[1760027549014,0.83070927,121220.0,121210.0,0.07007279]
[1760027549774,0.91070607,121220.0,121210.0,0.07007279]
[1760027549974,0.83070927,121220.0,121210.0,0.07007279]
[1760027550591,0.83070927,121220.0,121210.0,0.23507567]
[1760027550791,0.83070927,121220.0,121210.0,0.07007279]
[1760027550988,1.46324163,121220.0,121210.0,0.00246279]
[1760027551210,1.88323843,121220.0,121210.0,0.00246279]
[1760027551652,1.64651843,121220.0,121210.0,0.00246279]
[1760027551790,1.67667033,121220.0,121210.0,0.00246279]
[1760027551994,1.9211022,121220.0,121210.0,0.00246279]
[1760027552231,1.93887081,121220.0,121210.0,0.00246279]
[1760027553294,1.93891081,121220.0,121210.0,0.00246279]
[1760027553826,1.96368979,121220.0,121210.0,0.00246279]
[1760027554977,1.95597792,121220.0,121210.0,0.00246279]
[1760027555186,1.93820931,121220.0,121210.0,0.00246279]
[1760027555830,1.25703062,121220.0,121210.0,0.00246279]
[1760027556064,1.56656435,121220.0,121210.0,0.00246279]
[1760027556257,1.80328435,121220.0,121210.0,0.00246279]
[1760027558722,1.81166836,121220.0,121210.0,0.00246279]
[1760027559586,1.70661083,121220.0,121210.0,0.00246279]
[1760027562845,1.04085083,121220.0,121210.0,0.00246279]
[1760027563083,1.70661083,121220.0,121210.0,0.00246279]
[1760027563792,1.26929274,121220.0,121210.0,0.20656567]
[1760027564030,0.26353274,121220.0,121210.0,0.23600567]
[1760027564241,0.40564206,121220.0,121210.0,0.29560567]
[1760027564456,0.57063133,121220.0,121210.0,0.29560567]
[1760027564692,0.32252,121220.0,121210.0,0.29560567]
[1760027565100,0.48750927,121220.0,121210.0,0.29560567]
[1760027565726,0.51321372,121240.0,121220.0,0.16498927]
[1760027565727,0.17321937,121240.0,121220.0,0.16498927]
[1760027565953,0.82749566,121230.0,121220.0,0.25399622]
[1760027566159,0.82749566,121230.0,121220.0,0.29218622]
[1760027566824,0.82749566,121230.0,121220.0,0.23429622]
[1760027567712,0.82745566,121230.0,121220.0,0.23429622]
[1760027567918,0.90745246,121230.0,121220.0,0.23429622]
[1760027568819,0.67177246,121230.0,121220.0,0.23429622]
[1760027568995,0.90845246,121230.0,121220.0,0.23429622]
[1760027569199,0.67277246,121230.0,121220.0,0.29218622]
[1760027569406,0.90945246,121230.0,121220.0,0.23429622]
[1760027570768,0.82945566,121230.0,121220.0,0.29218622]
[1760027570983,0.66448,121230.0,121220.0,0.29218622]
[1760027571535,0.82945566,121230.0,121220.0,0.29218622]
[1760027571933,0.82945566,121230.0,121220.0,0.29373318]
[1760027572125,0.342,121230.0,121220.0,0.29373318]
[1760027572322,0.66448,121230.0,121220.0,0.29373318]
[1760027572728,0.002,121230.0,121220.0,0.29373318]
[1760027572933,0.32448,121230.0,121220.0,0.29373318]
[1760027573859,0.0878,121230.0,121220.0,0.29373318]
[1760027574075,0.32448,121230.0,121220.0,0.29373318]
[1760027575074,0.32248,121230.0,121220.0,0.29373318]
[1760027575319,0.0858,121230.0,121220.0,0.29373318]
[1760027575550,0.32244,121230.0,121220.0,0.29373318]
[1760027576929,0.94536995,121250.0,121220.0,0.29373318]
[1760027576930,1.28532995,121250.0,121240.0,0.16496205]
[1760027577151,1.26195793,121250.0,121240.0,0.20315205]
[1760027577383,1.26195793,121250.0,121240.0,0.03819]
[1760027578044,1.02531793,121250.0,121240.0,0.23376205]
[1760027578264,1.26195793,121250.0,121240.0,0.29165205]
[1760027578485,1.02731793,121250.0,121240.0,0.23376205]
[1760027578711,1.09076206,121250.0,121240.0,0.23376205]
[1760027578965,0.42512206,121250.0,121240.0,0.23376205]
[1760027579184,0.0878,121250.0,121240.0,0.29165205]
[1760027579418,0.0878,121250.0,121240.0,0.29996195]
[1760027579647,0.32444,121250.0,121240.0,0.29996195]
[1760027580651,0.0878,121250.0,121240.0,0.29996195]
[1760027580853,0.3244,121250.0,121240.0,0.29165205]
[1760027581055,0.3234,121250.0,121240.0,0.29165205]
[1760027581289,0.3224,121250.0,121240.0,0.29165205]
[1760027582472,0.3224,121250.0,121240.0,0.30027878]
[1760027582677,0.3224,121250.0,121240.0,0.29216762]
[1760027583716,0.0858,121250.0,121240.0,0.29216762]
[1760027583946,0.0858,121250.0,121240.0,0.30029865]
[1760027584146,0.3224,121250.0,121240.0,0.30029865]
[1760027584558,0.0858,121250.0,121240.0,0.29216762]
[1760027584757,0.32236,121250.0,121240.0,0.29216762]
[1760027584969,0.3445373,121270.0,121260.0,0.16493485]
[1760027585183,0.4302973,121270.0,121260.0,0.29162485]
[1760027585387,0.6668573,121270.0,121260.0,0.29162485]
[1760027585582,0.2379373,121270.0,121260.0,0.29162485]
[1760027586200,0.2380892,121270.0,121260.0,0.29162485]
[1760027590370,0.0015292,121270.0,121260.0,0.29162485]
[1760027590582,0.3238092,121270.0,121260.0,0.29162485]
[1760027595138,0.0872892,121270.0,121260.0,0.29162485]
[1760027595355,0.3237692,121270.0,121260.0,0.29162485]
[1760027596202,0.0872892,121270.0,121260.0,0.29162485]
[1760027596338,0.48869045,121270.0,121260.0,0.29162485]
[1760027596692,0.62535255,121270.0,121260.0,0.29162485]
[1760027597135,0.0872892,121270.0,121260.0,0.29162485]
[1760027597331,0.3237692,121270.0,121260.0,0.29162485]
[1760027597956,0.3237692,121270.0,121260.0,0.23373485]
[1760027598376,0.3237692,121270.0,121260.0,0.28947485]
[1760027599845,0.7902738,121270.0,121260.0,0.23373485]
[1760027600054,0.3237692,121270.0,121260.0,0.23373485]
[1760027600291,0.62535255,121270.0,121260.0,0.23373485]
[1760027600491,0.3237692,121270.0,121260.0,0.23373485]
[1760027600722,0.3402349,121270.0,121260.0,0.03061]
[1760027600941,0.16493485,121260.0,121240.0,0.00051557]
[1760027601150,0.7029718,121250.0,121240.0,0.00051557]
[1760027601364,1.0429718,121250.0,121240.0,0.00051557]
[1760027601574,1.17004623,121250.0,121240.0,0.00051557]
[1760027601784,0.34,121250.0,121240.0,0.27548382]
[1760027601968,0.59070845,121250.0,121240.0,0.06729557]
[1760027602177,1.02767107,121250.0,121240.0,0.00051557]
[1760027602378,1.37034308,121250.0,121240.0,0.00051557]
[1760027602543,1.21389988,121250.0,121240.0,0.00051557]
[1760027602750,1.45033988,121250.0,121240.0,0.00051557]
[1760027603152,1.46809372,121250.0,121240.0,0.00051557]
[1760027603358,1.03943449,121250.0,121240.0,0.00051557]
[1760027605144,1.46809227,121250.0,121240.0,0.00051557]
[1760027605537,1.03943449,121250.0,121240.0,0.00051557]
[1760027607776,0.71723449,121250.0,121240.0,0.00051557]
[1760027607975,1.38255451,121250.0,121240.0,0.00051557]
[1760027608181,1.3648021,121250.0,121240.0,0.00051557]
[1760027608447,1.57477117,121250.0,121240.0,0.00051557]
[1760027608575,1.81121117,121250.0,121240.0,0.00051557]
[1760027609191,1.79345988,121250.0,121240.0,0.00051557]
[1760027609411,1.81120843,121250.0,121240.0,0.00051557]
[1760027609998,1.57476786,121250.0,121240.0,0.00051557]
[1760027610274,1.81120786,121250.0,121240.0,0.00051557]
[1760027611075,1.60491976,121250.0,121240.0,0.00051557]
[1760027611254,1.84135976,121250.0,121240.0,0.00051557]
[1760027611454,1.60491976,121250.0,121240.0,0.00051557]
[1760027611654,1.82595389,121250.0,121240.0,0.00051557]
[1760027611918,1.84135483,121250.0,121240.0,0.00051557]
[1760027612066,1.86612986,121250.0,121240.0,0.00051557]
[1760027612269,1.86612688,121250.0,121240.0,0.00051557]
[1760027612474,1.86712688,121250.0,121240.0,0.00051557]
[1760027613521,1.86812688,121250.0,121240.0,0.00051557]
[1760027614172,1.84335185,121250.0,121240.0,0.00051557]
[1760027615217,1.8256033,121250.0,121240.0,0.00051557]
[1760027615428,1.17801017,121250.0,121240.0,0.00051557]
[1760027615641,1.86814321,121250.0,121240.0,0.00051557]
[1760027615896,1.06746933,121250.0,121240.0,0.00051557]
[1760027616114,1.27913629,121250.0,121240.0,0.00051557]
[1760027616356,1.26373535,121250.0,121240.0,0.00051557]
[1760027617266,0.59837535,121250.0,121240.0,0.00051557]
[1760027617492,1.26373535,121250.0,121240.0,0.00051557]
[1760027617718,1.34373215,121250.0,121240.0,0.00051557]
[1760027617938,0.59007051,121250.0,121240.0,0.00051557]
[1760027618153,0.51404206,121250.0,121240.0,0.23225762]
[1760027618366,0.08512206,121250.0,121240.0,0.23225762]
[1760027618600,0.75048206,121250.0,121240.0,0.23225762]
[1760027618801,0.08512206,121250.0,121240.0,0.23225762]
[1760027619005,0.08776,121250.0,121240.0,0.28799762]
[1760027619205,0.002,121250.0,121240.0,0.28799762]
[1760027619419,0.08776,121250.0,121240.0,0.28799762]
[1760027619684,0.3242,121250.0,121240.0,0.28799762]
[1760027620709,0.48914845,121250.0,121240.0,0.06729557]
[1760027620853,0.48914845,121250.0,121240.0,0.23225762]
[1760027621684,0.08776,121250.0,121240.0,0.23225762]
[1760027621910,0.3242,121250.0,121240.0,0.23225762]
[1760027622229,0.3242,121250.0,121240.0,0.29055762]
[1760027623256,0.32416,121250.0,121240.0,0.29055762]
[1760027623509,0.08776,121250.0,121240.0,0.29055762]
[1760027623920,0.32416,121250.0,121240.0,0.29055762]
[1760027624339,0.32416,121250.0,121240.0,0.29865535]
[1760027624552,0.32316,121250.0,121240.0,0.29865535]
[1760027624769,0.0015292,121270.0,121260.0,0.16493485]
[1760027624976,0.40681126,121270.0,121260.0,0.23257485]
[1760027625180,0.57173251,121270.0,121260.0,0.28711485]
[1760027625355,0.65172931,121270.0,121260.0,0.23257485]
[1760027625843,0.41532931,121270.0,121260.0,0.16493485]
[1760027626045,0.41532931,121270.0,121250.0,0.19469625]
[1760027626251,0.8176035,121270.0,121250.0,0.16493625]
[1760027626457,0.40133485,121260.0,121250.0,0.16493625]
[1760027626638,0.3163968,121260.0,121250.0,0.16493625]
[1760027626887,0.2364,121260.0,121250.0,0.16493625]
[1760027627092,0.2364,121260.0,121250.0,0.20281625]
[1760027627529,0.8176035,121270.0,121260.0,0.16493485]
[1760027627737,0.65168931,121270.0,121260.0,0.16493485]
[1760027628581,0.65168931,121270.0,121260.0,0.20281485]
[1760027628582,0.17041126,121270.0,121260.0,0.20281485]
[1760027628784,0.57169251,121270.0,121260.0,0.28711485]
[1760027629006,0.33533251,121270.0,121260.0,0.23257485]
[1760027629301,0.40677126,121270.0,121260.0,0.23257485]
[1760027629750,0.40677126,121270.0,121260.0,0.28711485]
[1760027630362,0.0015292,121270.0,121260.0,0.28711485]
[1760027630597,0.25221045,121270.0,121260.0,0.06764]
[1760027630829,0.56541881,121270.0,121250.0,0.16493625]
[1760027631031,0.16493485,121260.0,121250.0,0.20281625]
[1760027631240,0.56541881,121270.0,121250.0,0.20281625]
[1760027631455,0.16494845,121250.0,121240.0,0.02952557]
[1760027631666,0.16494845,121250.0,121240.0,0.19448762]
[1760027632086,0.16494845,121250.0,121240.0,0.16547762]
[1760027632294,0.40130845,121250.0,121240.0,0.16547762]
[1760027632728,0.23636,121250.0,121240.0,0.20335762]
[1760027632938,0.40130845,121250.0,121240.0,0.20335762]
[1760027633152,0.23636,121250.0,121240.0,0.20335762]
[1760027633766,0.17311283,121260.0,121240.0,0.20335762]
[1760027633970,0.33466693,121270.0,121250.0,0.16494845]
[1760027634178,0.48701485,121260.0,121250.0,0.20282845]
[1760027634401,0.48701485,121260.0,121240.0,0.24977762]
[1760027634986,0.25069485,121260.0,121240.0,0.24977762]
[1760027635190,0.23632,121250.0,121240.0,0.24977762]
[1760027635392,0.23632,121250.0,121240.0,0.28765762]
[1760027635801,0.25889797,121260.0,121250.0,0.16494845]
[1760027635968,0.49521797,121260.0,121250.0,0.16494845]
[1760027636166,0.48701485,121260.0,121250.0,0.16494845]
[1760027636568,0.25781857,121270.0,121250.0,0.20282845]
[1760027636787,0.32208,121260.0,121250.0,0.28712845]
[1760027637397,0.48701485,121260.0,121250.0,0.28712845]
[1760027637598,0.48701485,121260.0,121250.0,0.23258845]
[1760027639263,0.16493485,121260.0,121250.0,0.23258845]
[1760027639467,0.48701485,121260.0,121250.0,0.23258845]
[1760027639692,0.32208,121260.0,121250.0,0.23258845]
[1760027639998,0.32208,121260.0,121250.0,0.28712845]
[1760027640215,0.48701485,121260.0,121250.0,0.23258845]
[1760027640427,0.50325952,121260.0,121250.0,0.23258845]
[1760027640658,0.26693952,121260.0,121240.0,0.20348572]
[1760027640865,0.50325952,121260.0,121240.0,0.24136572]
[1760027641282,0.50325952,121260.0,121250.0,0.16494845]
[1760027641489,0.48701485,121260.0,121250.0,0.16494845]
[1760027641910,0.48701485,121260.0,121240.0,0.00051557]
[1760027641911,0.50494845,121250.0,121240.0,0.00051557]
[1760027642119,0.82435051,121250.0,121240.0,0.00051557]
[1760027642348,0.82435051,121250.0,121210.0,0.20341289]
[1760027642349,0.16498927,121220.0,121210.0,0.0004]
[1760027642568,1.08507158,121220.0,121210.0,0.0004]
[1760027642776,1.32135158,121220.0,121210.0,0.0004]
[1760027642988,1.8580919,121220.0,121210.0,0.0004]
[1760027643178,1.8580919,121220.0,121210.0,0.00194715]
[1760027643389,1.6218119,121220.0,121210.0,0.00194715]
[1760027643598,1.08838042,121220.0,121210.0,0.0024541]
[1760027643811,1.8580919,121220.0,121210.0,0.0024541]
[1760027644014,1.8581319,121220.0,121210.0,0.0024541]
[1760027644432,1.1939719,121220.0,121210.0,0.0024541]
[1760027644640,1.27081026,121220.0,121210.0,0.0024541]
[1760027645062,1.27181026,121220.0,121210.0,0.0024541]
[1760027646071,1.27185026,121220.0,121210.0,0.0024541]
[1760027647243,0.60661026,121220.0,121210.0,0.0024541]
[1760027647497,1.27185026,121220.0,121210.0,0.0024541]
[1760027647698,1.71675026,121220.0,121210.0,0.0024541]
[1760027648129,1.48043026,121220.0,121210.0,0.0024541]
[1760027648340,1.71675026,121220.0,121210.0,0.0403341]
[1760027648550,1.63099026,121220.0,121210.0,0.23509698]
[1760027648752,1.71675026,121220.0,121210.0,0.0700941]
[1760027649171,1.71675026,121220.0,121210.0,0.0024541]
[1760027649803,1.48043026,121220.0,121210.0,0.0024541]
[1760027650032,1.71679026,121220.0,121210.0,0.0024541]
[1760027650232,1.71679026,121220.0,121210.0,0.0416441]
[1760027650448,1.05151026,121220.0,121210.0,0.20664698]
[1760027650694,1.71687026,121220.0,121210.0,0.0707641]
[1760027651111,1.48051026,121220.0,121210.0,0.0315741]
[1760027651334,1.71687026,121220.0,121210.0,0.0315741]
[1760027651558,1.71687026,121220.0,121210.0,0.0707641]
[1760027651785,0.54652099,121220.0,121210.0,0.23576698]
[1760027652052,0.002,121220.0,121210.0,0.28977698]
[1760027652859,0.001,121220.0,121210.0,0.37289904]
[1760027653288,0.08756,121230.0,121220.0,0.16498927]
[1760027653491,0.0858,121240.0,121230.0,0.16497566]
[1760027653694,0.15337249,121260.0,121250.0,0.16494845]
[1760027653899,0.38973249,121260.0,121250.0,0.28726845]
[1760027654355,0.32353746,121260.0,121250.0,0.28726845]
[1760027654757,0.08717746,121260.0,121250.0,0.28726845]
[1760027655006,0.32358808,121260.0,121250.0,0.23325845]
[1760027655318,0.33215973,121260.0,121250.0,0.23325845]
[1760027655528,0.40358488,121260.0,121250.0,0.23325845]
[1760027655735,0.40354488,121260.0,121250.0,0.23325845]
[1760027657175,0.40354488,121260.0,121250.0,0.16494845]
[1760027657176,0.56847973,121260.0,121250.0,0.16494845]
[1760027658137,0.00142808,121260.0,121250.0,0.28726845]
[1760027658342,0.32350808,121260.0,121250.0,0.28726845]
[1760027658561,0.32350808,121260.0,121250.0,0.23325845]
[1760027659698,0.08718808,121260.0,121250.0,0.28726845]
[1760027659920,0.32350808,121260.0,121250.0,0.28726845]
[1760027660368,0.08718808,121260.0,121250.0,0.28726845]
[1760027660591,0.32350808,121260.0,121250.0,0.28726845]
[1760027661290,0.51709302,121260.0,121250.0,0.23325845]
[1760027661530,0.35215817,121260.0,121250.0,0.23325845]
[1760027662007,0.32350808,121260.0,121250.0,0.23325845]
[1760027662858,0.32350808,121260.0,121250.0,0.28726845]
[1760027663226,0.00142808,121260.0,121250.0,0.31742035]
[1760027663472,0.23770808,121260.0,121250.0,0.31742035]
[1760027666164,0.00142808,121260.0,121250.0,0.31742035]
[1760027666338,0.23770808,121260.0,121250.0,0.31742035]
[1760027667430,0.00142808,121260.0,121250.0,0.31742035]
[1760027675199,0.00142808,121260.0,121250.0,0.89366035]
[1760027675831,0.00142808,121260.0,121250.0,0.65742035]
[1760027676076,0.00142808,121260.0,121250.0,0.89366035]
[1760027678040,0.00142808,121260.0,121250.0,0.65742035]
[1760027679282,0.00142808,121260.0,121250.0,0.89362035]
[1760027680360,0.00142808,121260.0,121250.0,0.06831]
[1760027680560,0.08455014,121260.0,121250.0,0.02912]
[1760027680772,0.16494845,121250.0,121240.0,0.02912]
[1760027680997,0.16494845,121250.0,121230.0,0.00051563]
[1760027680998,0.16496205,121240.0,121230.0,0.00051563]
[1760027681430,0.16496205,121240.0,121230.0,0.03066753]
[1760027682093,0.93081059,121250.0,121230.0,0.23262319]
[1760027682365,0.2362,121240.0,121230.0,0.23101129]
[1760027682574,0.10086214,121250.0,121240.0,0.24813205]
[1760027682775,0.36170674,121250.0,121240.0,0.31526395]
[1760027682988,0.30819527,121250.0,121240.0,0.0301519]
[1760027683198,0.30586843,121250.0,121240.0,0.0301519]
[1760027683408,0.54977519,121250.0,121240.0,0.0301519]
[1760027683622,0.56753099,121250.0,121240.0,0.0301519]
[1760027684674,0.33133099,121250.0,121240.0,0.0301519]
[1760027684897,0.54206843,121250.0,121240.0,0.0301519]
[1760027685100,0.39397099,121250.0,121240.0,0.0301519]
[1760027685304,0.39396181,121250.0,121240.0,0.0301519]
[1760027685504,0.63016181,121250.0,121240.0,0.0301519]
[1760027685707,0.64556445,121250.0,121240.0,0.0301519]
[1760027686421,0.63016181,121250.0,121240.0,0.0301519]
[1760027687040,0.39396181,121250.0,121240.0,0.0301519]
[1760027687299,0.63015473,121250.0,121240.0,0.0301519]
[1760027688089,0.48427051,121250.0,121240.0,0.26048395]
[1760027688294,0.08312206,121250.0,121240.0,0.26028403]
[1760027688507,0.24807051,121250.0,121240.0,0.26028403]
[1760027688772,0.24807051,121250.0,121240.0,0.09532198]
[1760027688773,0.33383051,121250.0,121240.0,0.09532198]
[1760027688987,0.57003051,121250.0,121240.0,0.02995198]
[1760027689209,0.66776387,121250.0,121240.0,0.02995198]
[1760027689845,0.6677611,121250.0,121240.0,0.02995198]
[1760027690084,0.66776096,121250.0,121240.0,0.02995198]
[1760027690283,0.65002731,121250.0,121240.0,0.02995198]
[1760027690495,0.65002731,121250.0,121240.0,0.19491403]
[1760027690906,0.66775822,121250.0,121240.0,0.02995198]
[1760027691112,0.65002731,121250.0,121240.0,0.02995198]
[1760027691541,0.65002731,121250.0,121240.0,0.19491403]
[1760027691906,0.32806731,121250.0,121240.0,0.19491403]
[1760027692110,0.41382731,121250.0,121240.0,0.19491403]
[1760027692311,0.65002731,121250.0,121240.0,0.19491403]
[1760027692654,0.65002731,121250.0,121240.0,0.02995198]
[1760027692892,0.81755632,121250.0,121240.0,0.02995198]
[1760027693121,0.16496205,121240.0,121230.0,0.00051563]
[1760027693336,0.91295366,121240.0,121230.0,0.00051563]
[1760027693540,1.16800777,121240.0,121230.0,0.00051563]
[1760027694301,0.56528091,121240.0,121230.0,0.00051563]
[1760027694508,0.88252476,121240.0,121230.0,0.00051563]
[1760027695575,0.58066133,121240.0,121230.0,0.00051563]
[1760027695719,0.59009126,121240.0,121230.0,0.00051563]
[1760027695931,0.58166133,121240.0,121230.0,0.00051563]
[1760027696321,0.34546133,121240.0,121230.0,0.00051563]
[1760027696525,0.58170133,121240.0,121230.0,0.00051563]
[1760027696728,0.10050248,121240.0,121230.0,0.16549129]
[1760027696939,0.93058453,121240.0,121230.0,0.20345129]
[1760027697157,0.08512206,121240.0,121230.0,0.23894741]
[1760027697571,0.40712206,121240.0,121230.0,0.23894741]
[1760027697826,0.324,121240.0,121230.0,0.29300741]
[1760027698037,0.002,121240.0,121230.0,0.29300741]
[1760027698250,0.16884,121240.0,121230.0,0.29300741]
[1760027699132,0.23724,121240.0,121230.0,0.28492129]
[1760027699738,0.25070902,121250.0,121240.0,0.16496205]
[1760027699982,0.33383108,121250.0,121240.0,0.20292205]
[1760027700172,0.57003108,121250.0,121240.0,0.20292205]
[1760027700523,0.60762836,121250.0,121240.0,0.16496205]
[1760027700744,0.37142836,121250.0,121240.0,0.16496205]
[1760027700949,0.60762836,121250.0,121240.0,0.16496205]
[1760027701620,0.95078836,121250.0,121240.0,0.16496205]
[1760027701802,0.95078836,121250.0,121240.0,0.20292205]
[1760027702107,0.95078836,121250.0,121240.0,0.16496205]
[1760027702843,0.96850939,121250.0,121240.0,0.16496205]
[1760027703048,0.96850882,121250.0,121240.0,0.16496205]
[1760027703255,0.71458779,121250.0,121240.0,0.16496205]
[1760027703478,0.95079801,121250.0,121240.0,0.16496205]
[1760027704951,0.78584956,121250.0,121240.0,0.16496205]
[1760027705117,0.78584956,121250.0,121240.0,0.23307395]
[1760027705349,0.77046346,121250.0,121240.0,0.23307395]
[1760027705566,0.44850346,121250.0,121240.0,0.26048395]
[1760027705770,0.77046346,121250.0,121240.0,0.26048395]
[1760027706190,0.74824206,121250.0,121240.0,0.26048395]
[1760027706427,0.34458808,121260.0,121250.0,0.16494845]
[1760027706637,0.08455014,121260.0,121250.0,0.28437845]
[1760027706834,0.40651014,121260.0,121250.0,0.28437845]
[1760027707474,0.40651014,121260.0,121250.0,0.23031845]
[1760027707909,0.40851014,121260.0,121250.0,0.23031845]
[1760027708536,0.41724179,121260.0,121250.0,0.19235845]
[1760027708742,0.65344179,121260.0,121250.0,0.16494845]
[1760027709381,0.66886526,121260.0,121250.0,0.16494845]
[1760027709587,0.40851014,121260.0,121250.0,0.20290845]
[1760027710008,0.40851014,121260.0,121250.0,0.23031845]
[1760027710971,0.00342808,121260.0,121250.0,0.28589845]
[1760027711175,0.08918808,121260.0,121250.0,0.31605035]
[1760027711392,0.08918808,121260.0,121250.0,0.36689259]
[1760027711594,0.00342808,121260.0,121250.0,0.45001465]
[1760027712010,0.08576,121280.0,121270.0,0.19507315]
[1760027712210,0.08576,121280.0,121270.0,0.31606315]
[1760027712211,0.17777061,121280.0,121270.0,0.31606315]
[1760027712621,0.17880135,121280.0,121270.0,0.31606315]
[1760027712860,0.09304135,121280.0,121270.0,0.31606315]
[1760027713277,0.00108135,121280.0,121270.0,0.37318279]
[1760027713483,0.23724135,121280.0,121270.0,0.31606315]
[1760027714140,0.23724135,121280.0,121270.0,0.39918521]
[1760027714141,0.00108135,121280.0,121270.0,0.39918521]
[1760027718886,0.00108135,121280.0,121270.0,0.39898528]
[1760027719915,0.00108135,121280.0,121270.0,0.73898528]
[1760027720112,0.00108135,121280.0,121270.0,0.80420002]
[1760027720399,0.00108135,121280.0,121270.0,0.31586322]
[1760027724045,0.23716135,121280.0,121270.0,0.0301519]
[1760027724256,0.23716135,121280.0,121270.0,0.16492125]
[1760027724471,0.23716135,121280.0,121270.0,0.19507315]
[1760027725244,0.23716135,121280.0,121270.0,0.23307315]
[1760027725454,0.00108135,121280.0,121270.0,0.31606315]
[1760027725667,0.23716135,121280.0,121270.0,0.31506415]
[1760027725977,0.23716135,121280.0,121270.0,0.32337313]
[1760027726180,0.32292135,121280.0,121270.0,0.37494372]
[1760027726427,0.32392135,121280.0,121270.0,0.37494372]
[1760027726676,0.32392135,121280.0,121270.0,0.32337313]
[1760027726857,0.32492135,121280.0,121270.0,0.32337313]
[1760027727948,0.08884135,121280.0,121270.0,0.25948415]
[1760027728127,0.32492135,121280.0,121270.0,0.19407415]
[1760027728309,0.32488135,121280.0,121270.0,0.19407415]
[1760027728708,0.32488135,121280.0,121270.0,0.23207415]
[1760027728878,0.32488135,121280.0,121270.0,0.25948415]
[1760027729853,0.40487815,121280.0,121270.0,0.22148415]
[1760027730567,0.32488135,121280.0,121270.0,0.25948415]
[1760027731185,0.32488135,121280.0,121270.0,0.22148415]
[1760027732546,0.253749,121280.0,121270.0,0.0301519]
[1760027732767,0.58060213,121280.0,121270.0,0.0301519]
[1760027733024,0.58060238,121280.0,121270.0,0.0301519]
[1760027733230,0.70187439,121280.0,121270.0,0.0301519]
[1760027733468,0.71011977,121280.0,121250.0,0.20871178]
[1760027733684,0.16494845,121250.0,121240.0,0.19374964]
[1760027733908,0.16494845,121250.0,121240.0,0.02878759]
[1760027734119,0.48674845,121250.0,121240.0,0.00137759]
[1760027734299,0.55191678,121250.0,121240.0,0.19649154]
[1760027735187,0.55191678,121250.0,121240.0,0.16633964]
[1760027735616,0.31587678,121250.0,121240.0,0.23449154]
[1760027735838,0.55191678,121250.0,121240.0,0.23449154]
[1760027736609,0.55191678,121250.0,121240.0,0.19649154]
[1760027737722,0.27848276,121270.0,121250.0,0.16494572]
[1760027738034,0.82981485,121260.0,121250.0,0.16494572]
[1760027738211,0.94606374,121260.0,121250.0,0.16494572]
[1760027738412,0.16494845,121250.0,121240.0,0.22390154]
[1760027738634,0.16494845,121250.0,121240.0,0.19649154]
[1760027738792,0.24494525,121250.0,121240.0,0.19649154]
[1760027739817,0.26578827,121260.0,121250.0,0.16494845]
[1760027740027,0.69998273,121260.0,121250.0,0.16494845]
[1760027740232,0.95375409,121260.0,121240.0,0.22211154]
[1760027740427,0.95375409,121260.0,121240.0,0.25717154]
[1760027740633,0.71771409,121260.0,121240.0,0.25717154]
[1760027740834,0.36117562,121260.0,121240.0,0.25717154]
[1760027741038,0.3218,121250.0,121240.0,0.25717154]
[1760027742578,0.32805371,121260.0,121250.0,0.16494845]
[1760027742730,0.99293371,121260.0,121250.0,0.19510035]
[1760027743172,0.99293371,121260.0,121250.0,0.0301519]
[1760027744703,0.99393371,121260.0,121250.0,0.0301519]
[1760027745387,0.99493371,121260.0,121250.0,0.0301519]
[1760027745599,0.99493371,121260.0,121250.0,0.19510035]
[1760027745779,0.99493371,121260.0,121250.0,0.0301519]
[1760027746235,0.77427609,121260.0,121250.0,0.0301519]
[1760027746449,0.43084,121260.0,121250.0,0.22944035]
[1760027746661,0.002,121260.0,121250.0,0.31206035]
[1760027747085,0.02432,121260.0,121250.0,0.31206035]
[1760027747496,0.06564,121260.0,121250.0,0.31206035]
[1760027748341,0.06464,121260.0,121250.0,0.31206035]
[1760027748550,0.00051542,121270.0,121260.0,0.16493485]
[1760027748776,0.00051542,121270.0,121260.0,0.19143485]
[1760027748977,0.23655542,121270.0,121260.0,0.28189485]
[1760027749164,0.00051542,121270.0,121260.0,0.31204675]
[1760027749372,0.23655542,121270.0,121260.0,0.65204675]
[1760027751586,0.00051542,121270.0,121260.0,0.65204675]
[1760027752017,0.24855873,121270.0,121240.0,0.24895528]
[1760027752229,0.16493485,121260.0,121250.0,0.16494845]
[1760027752436,0.16493485,121260.0,121250.0,0.19510035]
[1760027753066,0.24805691,121260.0,121240.0,0.19283528]
[1760027753286,0.32176,121250.0,121240.0,0.19283528]
[1760027753508,0.32176,121250.0,121240.0,0.25732718]
[1760027756238,0.42620206,121260.0,121250.0,0.16494845]
[1760027756439,0.74796206,121260.0,121250.0,0.16494845]
[1760027756657,0.74796206,121260.0,121250.0,0.19928845]
[1760027756860,0.77899574,121260.0,121250.0,0.16494845]
[1760027757060,0.94393059,121260.0,121250.0,0.16494845]
[1760027757267,0.94493059,121260.0,121250.0,0.16494845]
[1760027757485,0.77999574,121260.0,121250.0,0.16494845]
[1760027757900,0.94593059,121260.0,121250.0,0.16494845]
[1760027759188,0.94593059,121260.0,121240.0,0.19648718]
[1760027759410,0.96134273,121260.0,121240.0,0.19648718]
[1760027759604,0.96134273,121260.0,121250.0,0.16494845]